[Event "SWE-ch Class 1 2019"]
[Site "Eskilstuna"]
[Date "2019.07.10"]
[Round "3.7"]
[White "Thollin, Robert"]
[Black "Akerlund, Fredrik"]
[Result "1/2-1/2"]
[ECO "C02"]
[WhiteElo "1983"]
[BlackElo "1815"]
[Annotator "NA"]
[PlyCount "51"]
[EventDate "2019.07.06"]
[EventType "tourn"]
[EventCountry "SWE"]
[SourceTitle "playchess.com"]
[Source "ChessBase"]
[SourceQuality "1"]
[TimeControl "40/5400+30:1800+30"]

1. e4 {[%emt 0:11:18]} e6 {[%emt 0:00:00]} 2. d4 {[%emt 0:00:20]} d5 {[%emt 0:00:00]} 3. e5 {[%emt 0:02:17]} c5 {[%emt 0:00:00]} 4. c3 {[%emt 0:00:04]} Nc6 {[%emt 0:00:00]} 5. Nf3 {[%emt 0:00:06]} Qb6 {[%emt 0:01:04]} 6. Be2 {[%emt 0:01:48]} Bd7 {[%emt 0:00:43]} 7. O-O {[%emt 0:00:48]} cxd4 {[%emt 0:03:15]} 8. cxd4 {[%emt 0:00:03]} Nge7 {[%emt 0:00:33]} 9. b3 {[%emt 0:11:56]} Nf5 {[%emt 0:09:31]} 10. Bb2 {[%emt 0:02:00]} Be7 {[%emt 0:01:44]} 11. Kh1 {[%emt 0:12:32]} h5 {[%emt 0:01:53]} 12. Qd2 {[%emt 0:07:56]} h4 {[%emt 0:12:04]} 13. Rd1 {[%emt 0:00:56]} f6 {[%emt 0:07:48]} 14. h3 {[%emt 0:03:41]} fxe5 {[%emt 0:04:09]} 15. Nxe5 {[%emt 0:00:17]} Nxe5 {[%emt 0:01:12]} 16. dxe5 {[%emt 0:00:03]} O-O-O {[%emt 0:06:14]} 17. Bg4 {[%emt 0:00:27]} Rdf8 {[%emt 0:02:41]} 18. Nc3 {[%emt 0:06:14]} Kb8 {[%emt 0:05:45]} 19. Na4 {[%emt 0:09:39]} Bxa4 {[%emt 0:05:16]} 20. bxa4 {[%emt 0:00:03]} Bb4 {[%emt 0:04:50]} 21. Qe2 {[%emt 0:04:32]} Bc5 {[%emt 0:05:54]} 22. Rab1 {[%emt 0:09:16]} Bxf2 {[%emt 0:13:16]} 23. Bxf5 {[%emt 0:00:03]} Rxf5 {[%emt 0:00:08]} 24. Bd4 {[%emt 0:04:12]} Qxd4 {[%emt 0:04:19]} 25. Rxd4 {[%emt 0:00:04]} Bxd4 {[%emt 0:00:06]} 26. Qb5 {[%emt 0:04:02]} 1/2-1/2

[Event "SWE-ch Class 1 2019"]
[Site "Eskilstuna"]
[Date "2019.07.10"]
[Round "3.8"]
[White "Karlsson, Roger"]
[Black "Muganlinskij, Hussein"]
[Result "0-1"]
[ECO "B12"]
[WhiteElo "1915"]
[BlackElo "2022"]
[Annotator "NA"]
[PlyCount "74"]
[EventDate "2019.07.06"]
[EventType "tourn"]
[EventCountry "SWE"]
[SourceTitle "playchess.com"]
[Source "ChessBase"]
[SourceQuality "1"]
[TimeControl "40/5400+30:1800+30"]

1. e4 {[%emt 0:00:00]} c6 {[%emt 0:00:00]} 2. d4 {[%emt 0:00:06]} d5 {[%emt 0:00:00]} 3. e5 {[%emt 0:03:58]} c5 {[%emt 0:00:14]} 4. c3 {[%emt 0:00:44]} Nc6 {[%emt 0:00:12]} 5. f4 {[%emt 0:01:29]} cxd4 {[%emt 0:03:35]} 6. cxd4 {[%emt 0:03:41]} Nh6 {[%emt 0:00:11]} 7. Bb5 {[%emt 0:07:08]} e6 {[%emt 0:00:41]} 8. Nf3 {[%emt 0:03:11]} Nf5 {[%emt 0:00:34]} 9. g4 {[%emt 0:10:06]} Nh4 {[%emt 0:02:11]} 10. O-O {[%emt 0:02:17]} h5 {[%emt 0:00:42]} 11. Nxh4 {[%emt 0:07:04]} Qxh4 {[%emt 0:01:13]} 12. g5 {[%emt 0:01:39]} Bd7 {[%emt 0:06:06]} 13. Be2 {[%emt 0:12:26]} Rc8 {[%emt 0:05:24]} 14. Be3 {[%emt 0:05:46]} Qh3 {[%emt 0:01:07]} 15. Rf3 {[%emt 0:02:55]} Qf5 {[%emt 0:03:56]} 16. Bd3 {[%emt 0:11:06]} Qg4+ {[%emt 0:00:08]} 17. Kh1 {[%emt 0:04:12]} Nxd4 {[%emt 0:09:22]} 18. Bxd4 {[%emt 0:06:12]} Rc1 {[%emt 0:00:08]} 19. Qxc1 {[%emt 0:00:28]} Qxf3+ {[%emt 0:00:09]} 20. Kg1 {[%emt 0:00:15]} Qxd3 {[%emt 0:02:01]} 21. Bxa7 {[%emt 0:02:44]} Bc6 {[%emt 0:10:39]} 22. Qd2 {[%emt 0:04:55]} Qc4 {[%emt 0:08:44]} 23. Nc3 {[%emt 0:02:44]} Bc5+ {[%emt 0:01:35]} 24. Bxc5 {[%emt 0:00:32]} Qxc5+ {[%emt 0:00:09]} 25. Qf2 {[%emt 0:01:09]} Qc4 {[%emt 0:00:18]} 26. Rd1 {[%emt 0:01:22]} O-O {[%emt 0:02:49]} 27. Qd4 {[%emt 0:03:02]} Qa6 {[%emt 0:00:13]} 28. Rf1 {[%emt 0:02:07]} g6 {[%emt 0:02:03]} 29. Rf2 {[%emt 0:00:10]} Rc8 {[%emt 0:16:12]} 30. b3 {[%emt 0:00:26]} Bd7 {[%emt 0:01:10]} 31. Rf3 {[%emt 0:01:01]} Qa3 {[%emt 0:01:02]} 32. Rf1 {[%emt 0:00:26]} Qb2 {[%emt 0:00:18]} 33. Nb5 {[%emt 0:00:27]} Qe2 {[%emt 0:07:33]} 34. Nd6 {[%emt 0:00:30]} Qg4+ {[%emt 0:00:40]} 35. Kh1 {[%emt 0:00:15]} Rc2 {[%emt 0:00:13]} 36. Qg1 {[%emt 0:00:36]} Qe2 {[%emt 0:05:36]} 37. Re1 {[%emt 0:00:26]} Qf3+ {[%emt 0:00:16] Rf1 Qe2} 0-1

[Event "SWE-ch Class 1 2019"]
[Site "Eskilstuna"]
[Date "2019.07.10"]
[Round "3.9"]
[White "Eriksson, Joel"]
[Black "Johansson, Roland"]
[Result "1-0"]
[ECO "A80"]
[WhiteElo "1998"]
[BlackElo "2002"]
[Annotator "NA"]
[PlyCount "73"]
[EventDate "2019.07.06"]
[EventType "tourn"]
[EventCountry "SWE"]
[SourceTitle "playchess.com"]
[Source "ChessBase"]
[SourceQuality "1"]
[TimeControl "40/5400+30:1800+30"]

1. d4 {[%emt 0:00:00]} f5 {[%emt 0:07:21]} 2. Bg5 {[%emt 0:00:00]} Nf6 {[%emt 0:01:40]} 3. Bxf6 {[%emt 0:00:00]} exf6 {[%emt 0:00:08]} 4. e3 {[%emt 0:00:06]} Qe7 {[%emt 0:07:33]} 5. Nc3 {[%emt 0:14:18]} c6 {[%emt 0:03:37]} 6. Nh3 {[%emt 0:02:48]} d5 {[%emt 0:02:53]} 7. Nf4 {[%emt 0:03:25]} g6 {[%emt 0:01:54]} 8. h4 {[%emt 0:11:35]} Bh6 {[%emt 0:03:53]} 9. g3 {[%emt 0:02:11]} Nd7 {[%emt 0:02:53]} 10. Qd2 {[%emt 0:09:46]} Nb6 {[%emt 0:07:25]} 11. O-O-O {[%emt 0:02:18]} Bd7 {[%emt 0:00:55]} 12. Nb1 {[%emt 0:01:32]} O-O-O {[%emt 0:03:07]} 13. Na3 {[%emt 0:01:25]} Kb8 {[%emt 0:01:18]} 14. Qa5 {[%emt 0:04:34]} Bf8 {[%emt 0:03:12]} 15. Nd3 {[%emt 0:02:37]} Qe4 {[%emt 0:04:56]} 16. Be2 {[%emt 0:01:55]} Bd6 {[%emt 0:01:14]} 17. Kb1 {[%emt 0:03:33]} Bc7 {[%emt 0:01:55]} 18. Qb4 {[%emt 0:02:11]} Rhe8 {[%emt 0:00:44]} 19. Nc5 {[%emt 0:03:28]} Qe7 {[%emt 0:01:30]} 20. c4 {[%emt 0:02:14]} Bc8 {[%emt 0:02:15]} 21. Bf3 {[%emt 0:03:11]} Ka8 {[%emt 0:05:43]} 22. Rc1 {[%emt 0:04:41]} Bd6 {[%emt 0:02:20]} 23. Rhd1 {[%emt 0:03:40]} Bxc5 {[%emt 0:08:46]} 24. dxc5 {[%emt 0:00:20]} Nxc4 {[%emt 0:00:07]} 25. Nxc4 {[%emt 0:01:45]} dxc4 {[%emt 0:00:07]} 26. Qxc4 {[%emt 0:00:34]} Be6 {[%emt 0:02:41]} 27. Qb4 {[%emt 0:02:35]} Qf7 {[%emt 0:00:44]} 28. Qa5 {[%emt 0:01:12]} Rd7 {[%emt 0:03:35]} 29. Rd6 {[%emt 0:01:18]} Rxd6 {[%emt 0:06:58]} 30. cxd6 {[%emt 0:00:09]} Qd7 {[%emt 0:00:10]} 31. Rd1 {[%emt 0:00:48]} Rc8 {[%emt 0:01:25]} 32. Rd4 {[%emt 0:00:47]} Qd8 {[%emt 0:03:05]} 33. Qa3 {[%emt 0:00:49]} Qb6 {[%emt 0:00:59]} 34. d7 {[%emt 0:03:46]} Rd8 {[%emt 0:05:46]} 35. Qd6 {[%emt 0:01:17]} c5 {[%emt 0:00:47]} 36. Rd1 {[%emt 0:02:43]} Rxd7 {[%emt 0:01:32]} 37. Qf8+ {[%emt 0:00:21]} 1-0

[Event "SWE-ch Class 1 2019"]
[Site "Eskilstuna"]
[Date "2019.07.10"]
[Round "3.10"]
[White "Carnstam, Tomas"]
[Black "Grundel, Sam"]
[Result "0-1"]
[ECO "A53"]
[WhiteElo "1967"]
[BlackElo "2069"]
[Annotator "NA"]
[PlyCount "78"]
[EventDate "2019.07.06"]
[EventType "tourn"]
[EventCountry "SWE"]
[SourceTitle "playchess.com"]
[Source "ChessBase"]
[SourceQuality "1"]
[TimeControl "40/5400+30:1800+30"]

1. c4 {[%emt 0:00:00]} Nf6 {[%emt 0:00:00]} 2. Nc3 {[%emt 0:00:00]} c6 {[%emt 0:00:13]} 3. e4 {[%emt 0:02:37]} d6 {[%emt 0:05:36]} 4. d4 {[%emt 0:07:24]} Nbd7 {[%emt 0:00:33]} 5. f4 {[%emt 0:03:01]} e5 {[%emt 0:06:09]} 6. dxe5 {[%emt 0:01:15]} dxe5 {[%emt 0:00:31]} 7. fxe5 {[%emt 0:08:37]} Nxe5 {[%emt 0:01:24]} 8. Qxd8+ {[%emt 0:00:06]} Kxd8 {[%emt 0:00:07]} 9. Nf3 {[%emt 0:00:50]} Bd6 {[%emt 0:03:07]} 10. Be3 {[%emt 0:11:01]} Kc7 {[%emt 0:07:41]} 11. c5 {[%emt 0:04:18]} Nxf3+ {[%emt 0:01:08]} 12. gxf3 {[%emt 0:00:04]} Be5 {[%emt 0:01:26]} 13. O-O-O {[%emt 0:06:23]} Be6 {[%emt 0:02:04]} 14. Ne2 {[%emt 0:01:50]} Rad8 {[%emt 0:10:39]} 15. Rxd8 {[%emt 0:00:35]} Kxd8 {[%emt 0:00:09]} 16. f4 {[%emt 0:14:24]} Bc7 {[%emt 0:01:19]} 17. Nc3 {[%emt 0:00:59]} g6 {[%emt 0:01:28]} 18. Be2 {[%emt 0:07:54]} Ke7 {[%emt 0:05:32]} 19. Rf1 {[%emt 0:00:55]} Ng4 {[%emt 0:06:18]} 20. Bg1 {[%emt 0:00:05]} h5 {[%emt 0:01:56]} 21. f5 {[%emt 0:01:05]} Bc8 {[%emt 0:07:24]} 22. f6+ {[%emt 0:04:45]} Kd8 {[%emt 0:03:13]} 23. Rd1+ {[%emt 0:03:46]} Bd7 {[%emt 0:00:27]} 24. h3 {[%emt 0:00:42]} Ne5 {[%emt 0:03:58]} 25. b4 {[%emt 0:02:55]} Kc8 {[%emt 0:01:47]} 26. Bf1 {[%emt 0:01:45]} Nf3 {[%emt 0:05:02]} 27. Be3 {[%emt 0:00:58]} Be5 {[%emt 0:00:19]} 28. Ne2 {[%emt 0:02:44]} Bxf6 {[%emt 0:01:54]} 29. Bg2 {[%emt 0:01:05]} Ne5 {[%emt 0:04:12]} 30. Rf1 {[%emt 0:01:13]} Bg7 {[%emt 0:00:43]} 31. Bd4 {[%emt 0:01:07]} Be6 {[%emt 0:00:38]} 32. Kb1 {[%emt 0:02:33]} Bc4 {[%emt 0:00:57]} 33. Rf2 {[%emt 0:04:02]} Rd8 {[%emt 0:00:27]} 34. Bxe5 {[%emt 0:02:17]} Bxe5 {[%emt 0:00:19]} 35. Nc1 {[%emt 0:00:42]} Rd1 {[%emt 0:04:07]} 36. Kc2 {[%emt 0:01:06]} Rg1 {[%emt 0:00:33]} 37. Nd3 {[%emt 0:02:01]} Bd4 {[%emt 0:06:07]} 38. Rd2 {[%emt 0:00:48]} Bxa2 {[%emt 0:00:47]} 39. Nc1 {[%emt 0:00:36]} Be3 {[%emt 0:00:28]} 0-1

[Event "SWE-ch Class 1 2019"]
[Site "Eskilstuna"]
[Date "2019.07.11"]
[Round "4.1"]
[White "Bernhard, Jonathan"]
[Black "Nordstrom, Felix"]
[Result "0-1"]
[ECO "D45"]
[WhiteElo "1917"]
[BlackElo "2064"]
[Annotator "NA"]
[PlyCount "74"]
[EventDate "2019.07.06"]
[EventType "tourn"]
[EventCountry "SWE"]
[SourceTitle "playchess.com"]
[Source "ChessBase"]
[SourceQuality "1"]
[TimeControl "40/5400+30:1800+30"]

1. Nf3 {[%emt 0:00:00]} d5 {[%emt 0:00:00]} 2. e3 {[%emt 0:00:01]} Nf6 {[%emt 0:03:18]} 3. c4 {[%emt 0:00:20]} c6 {[%emt 0:00:51]} 4. Nc3 {[%emt 0:00:13]} e6 {[%emt 0:02:04]} 5. b3 {[%emt 0:01:12]} Bd6 {[%emt 0:00:57]} 6. d4 {[%emt 0:01:59]} Nbd7 {[%emt 0:01:20]} 7. Bb2 {[%emt 0:00:25]} O-O {[%emt 0:00:47]} 8. Be2 {[%emt 0:01:56]} Qe7 {[%emt 0:01:30]} 9. Qc1 {[%emt 0:03:14]} dxc4 {[%emt 0:06:41]} 10. bxc4 {[%emt 0:01:42]} e5 {[%emt 0:00:38]} 11. O-O {[%emt 0:03:28]} Re8 {[%emt 0:04:47]} 12. Re1 {[%emt 0:09:04]} e4 {[%emt 0:09:27]} 13. Nd2 {[%emt 0:02:03]} Nf8 {[%emt 0:00:37]} 14. f3 {[%emt 0:04:40]} exf3 {[%emt 0:03:06]} 15. Bxf3 {[%emt 0:00:13]} Ng4 {[%emt 0:05:02]} 16. Nf1 {[%emt 0:01:50]} Qh4 {[%emt 0:10:09]} 17. h3 {[%emt 0:09:13]} Nf2 {[%emt 0:07:58]} 18. Qd2 {[%emt 0:01:06]} Nxh3+ {[%emt 0:00:16]} 19. gxh3 {[%emt 0:00:10]} Bxh3 {[%emt 0:01:27]} 20. Bg2 {[%emt 0:03:46]} Bxg2 {[%emt 0:02:12]} 21. Qxg2 {[%emt 0:00:28]} Re6 {[%emt 0:00:14]} 22. Re2 {[%emt 0:04:52]} Rg6 {[%emt 0:00:40]} 23. d5 {[%emt 0:00:06]} Qxc4 {[%emt 0:02:22]} 24. Rd1 {[%emt 0:01:48]} Be5 {[%emt 0:02:16]} 25. Nd2 {[%emt 0:01:37]} Qb4 {[%emt 0:06:05]} 26. Nde4 {[%emt 0:00:58]} Rxg2+ {[%emt 0:09:15]} 27. Rxg2 {[%emt 0:00:03]} f5 {[%emt 0:00:48]} 28. dxc6 {[%emt 0:01:08]} fxe4 {[%emt 0:01:58]} 29. Nd5 {[%emt 0:01:36]} Qd6 {[%emt 0:01:07]} 30. Bxe5 {[%emt 0:12:10]} Qxe5 {[%emt 0:00:37]} 31. c7 {[%emt 0:00:17]} Ng6 {[%emt 0:07:53]} 32. Nb6 {[%emt 0:03:17]} axb6 {[%emt 0:05:08]} 33. Rd8+ {[%emt 0:00:07]} Kf7 {[%emt 0:00:59]} 34. Rc2 {[%emt 0:04:54]} Qg5+ {[%emt 0:00:40]} 35. Rg2 {[%emt 0:01:12]} Qxd8 {[%emt 0:00:08]} 36. cxd8=Q {[%emt 0:00:08]} Rxd8 {[%emt 0:00:09]} 37. Rb2 {[%emt 0:00:14]} Rd6 {[%emt 0:00:11]} 0-1

[Event "SWE-ch Class 1 2019"]
[Site "Eskilstuna"]
[Date "2019.07.11"]
[Round "4.3"]
[White "Halvarsson, Peter"]
[Black "Forsberg, Andre"]
[Result "0-1"]
[ECO "C29"]
[WhiteElo "1903"]
[BlackElo "1982"]
[Annotator "NA"]
[PlyCount "88"]
[EventDate "2019.07.06"]
[EventType "tourn"]
[EventCountry "SWE"]
[SourceTitle "playchess.com"]
[Source "ChessBase"]
[SourceQuality "1"]
[TimeControl "40/5400+30:1800+30"]

1. e4 {[%emt 0:00:00]} e5 {[%emt 0:00:43]} 2. Nc3 {[%emt 0:00:00]} Nf6 {[%emt 0:00:54]} 3. f4 {[%emt 0:00:27]} d5 {[%emt 0:01:37]} 4. fxe5 {[%emt 0:00:19]} Nxe4 {[%emt 0:00:50]} 5. Qf3 {[%emt 0:00:09]} Nc6 {[%emt 0:02:43]} 6. Bb5 {[%emt 0:00:15]} Nxc3 {[%emt 0:02:25]} 7. bxc3 {[%emt 0:00:06]} Qh4+ {[%emt 0:01:55]} 8. g3 {[%emt 0:01:21]} Qe4+ {[%emt 0:00:44]} 9. Qxe4 {[%emt 0:00:06]} dxe4 {[%emt 0:00:07]} 10. Bxc6+ {[%emt 0:00:04]} bxc6 {[%emt 0:00:09]} 11. Ne2 {[%emt 0:00:08]} Be7 {[%emt 0:08:47]} 12. Rf1 {[%emt 0:06:28]} O-O {[%emt 0:26:19]} 13. Rf4 {[%emt 0:40:28]} f5 {[%emt 0:05:22]} 14. exf6 {[%emt 0:03:38]} Bxf6 {[%emt 0:00:14]} 15. Nd4 {[%emt 0:06:39]} c5 {[%emt 0:02:49]} 16. Nb3 {[%emt 0:01:38]} e3 {[%emt 0:09:02]} 17. Nxc5 {[%emt 0:07:16]} Re8 {[%emt 0:23:26]} 18. d4 {[%emt 0:04:17]} Bg5 {[%emt 0:02:39]} 19. Rf1 {[%emt 0:14:19]} Bh3 {[%emt 0:01:24]} 20. Rg1 {[%emt 0:03:06]} Rf8 {[%emt 0:01:05]} 21. Nd3 {[%emt 0:04:34]} Rae8 {[%emt 0:01:39]} 22. Ba3 {[%emt 0:01:47]} Rf6 {[%emt 0:01:28]} 23. Rb1 {[%emt 0:02:35]} e2 {[%emt 0:00:55]} 24. Nf2 {[%emt 0:00:28]} Be3 {[%emt 0:00:34]} 25. Nxh3 {[%emt 0:01:10]} Bxg1 {[%emt 0:00:25]} 26. Nf4 {[%emt 0:01:01]} g5 {[%emt 0:00:50]} 27. Kd2 {[%emt 0:00:38]} Be3+ {[%emt 0:00:56]} 28. Kxe2 {[%emt 0:00:30]} Bxf4+ {[%emt 0:00:12]} 29. Kd3 {[%emt 0:00:23]} Re3+ {[%emt 0:01:06]} 30. Kc4 {[%emt 0:00:13]} Bd6 {[%emt 0:00:35]} 31. Bc1 {[%emt 0:00:44]} Re1 {[%emt 0:01:29]} 32. Rb8+ {[%emt 0:00:42]} Rf8 {[%emt 0:00:06]} 33. Rxf8+ {[%emt 0:00:09]} Kxf8 {[%emt 0:00:07]} 34. Bxg5 {[%emt 0:00:04]} Re2 {[%emt 0:00:15]} 35. Kd3 {[%emt 0:00:57]} Rxh2 {[%emt 0:00:09]} 36. c4 {[%emt 0:00:46]} Bxg3 {[%emt 0:00:13]} 37. a4 {[%emt 0:00:11]} h5 {[%emt 0:00:18]} 38. c5 {[%emt 0:00:23]} h4 {[%emt 0:00:34]} 39. d5 {[%emt 0:00:32]} h3 {[%emt 0:01:02]} 40. Be3 {[%emt 0:00:27]} Rg2 {[%emt 0:00:41]} 41. c6 {[%emt 0:30:19]} h2 {[%emt 0:30:17]} 42. Bc5+ {[%emt 0:01:12]} Ke8 {[%emt 0:00:25]} 43. d6 {[%emt 0:00:24]} Bxd6 {[%emt 0:00:17]} 44. Bxd6 {[%emt 0:00:11]} cxd6 {[%emt 0:00:17]} 0-1

[Event "SWE-ch Class 1 2019"]
[Site "Eskilstuna"]
[Date "2019.07.11"]
[Round "4.4"]
[White "Bjorkman, Filip"]
[Black "Attefall, Fredrik"]
[Result "1/2-1/2"]
[ECO "B01"]
[WhiteElo "1956"]
[BlackElo "2077"]
[Annotator "NA"]
[PlyCount "142"]
[EventDate "2019.07.06"]
[EventType "tourn"]
[EventCountry "SWE"]
[SourceTitle "playchess.com"]
[Source "ChessBase"]
[SourceQuality "1"]
[TimeControl "40/5400+30:1800+30"]

1. e4 {[%emt 0:00:00]} d5 {[%emt 0:00:00]} 2. exd5 {[%emt 0:00:00]} Qxd5 {[%emt 0:00:00]} 3. Nc3 {[%emt 0:00:00]} Qa5 {[%emt 0:00:00]} 4. d4 {[%emt 0:00:00]} Nf6 {[%emt 0:00:00]} 5. Bc4 {[%emt 0:00:02]} Bg4 {[%emt 0:01:06]} 6. Nge2 {[%emt 0:06:43]} e6 {[%emt 0:11:56]} 7. O-O {[%emt 0:04:15]} Bd6 {[%emt 0:05:06]} 8. Nb5 {[%emt 0:02:12]} O-O {[%emt 0:05:05]} 9. c3 {[%emt 0:08:42]} Be7 {[%emt 0:09:37]} 10. a4 {[%emt 0:06:09]} c6 {[%emt 0:01:26]} 11. b4 {[%emt 0:05:13]} Qd8 {[%emt 0:05:23]} 12. Na3 {[%emt 0:00:19]} Nd5 {[%emt 0:00:31]} 13. Qb3 {[%emt 0:00:52]} Nd7 {[%emt 0:01:59]} 14. h3 {[%emt 0:01:16]} Bf5 {[%emt 0:05:17]} 15. Ng3 {[%emt 0:03:25]} Bg6 {[%emt 0:00:39]} 16. Nc2 {[%emt 0:02:38]} Bd6 {[%emt 0:01:27]} 17. Ne3 {[%emt 0:04:20]} Qh4 {[%emt 0:03:29]} 18. Kh2 {[%emt 0:00:54]} N7f6 {[%emt 0:02:21]} 19. Nxd5 {[%emt 0:22:38]} exd5 {[%emt 0:00:45]} 20. Be2 {[%emt 0:01:05]} Rae8 {[%emt 0:11:31]} 21. Ra2 {[%emt 0:05:39]} Rxe2 {[%emt 0:08:08]} 22. Rxe2 {[%emt 0:00:13]} Bd3 {[%emt 0:01:28]} 23. Qd1 {[%emt 0:00:38]} Ng4+ {[%emt 0:05:17]} 24. Kg1 {[%emt 0:00:49]} Nxf2 {[%emt 0:00:34]} 25. Rexf2 {[%emt 0:14:39]} Qxg3 {[%emt 0:00:11]} 26. Rf3 {[%emt 0:01:56]} Qh2+ {[%emt 0:00:09]} 27. Kf2 {[%emt 0:00:05]} Bxf1 {[%emt 0:01:16]} 28. Qxf1 {[%emt 0:00:33]} Re8 {[%emt 0:03:51]} 29. Be3 {[%emt 0:01:04]} f5 {[%emt 0:02:06]} 30. Qb1 {[%emt 0:03:44]} Re4 {[%emt 0:02:58]} 31. b5 {[%emt 0:00:24]} Be7 {[%emt 0:04:43]} 32. Qf1 {[%emt 0:02:27]} f4 {[%emt 0:00:59]} 33. bxc6 {[%emt 0:02:32]} bxc6 {[%emt 0:01:57]} 34. Bxf4 {[%emt 0:00:17]} Rxf4 {[%emt 0:00:16]} 35. Qa6 {[%emt 0:00:41]} Bh4+ {[%emt 0:01:19]} 36. Ke3 {[%emt 0:00:51]} Rxf3+ {[%emt 0:01:50]} 37. Kxf3 {[%emt 0:00:27]} Qg3+ {[%emt 0:01:02]} 38. Ke2 {[%emt 0:00:02]} Qxg2+ {[%emt 0:00:39]} 39. Kd1 {[%emt 0:00:01]} Qf3+ {[%emt 0:00:47]} 40. Kc2 {[%emt 0:00:08]} Qe4+ {[%emt 0:00:42]} 41. Kb2 {[%emt 0:30:11]} Be7 {[%emt 0:07:28]} 42. Qxc6 {[%emt 0:00:00]} Qe2+ {[%emt 0:00:35]} 43. Kb1 {[%emt 0:00:00]} Qc4 {[%emt 0:05:19]} 44. Qe8+ {[%emt 0:00:00]} Bf8 {[%emt 0:00:04]} 45. Kb2 {[%emt 0:00:00]} a6 {[%emt 0:04:16]} 46. h4 {[%emt 0:00:00]} h6 {[%emt 0:01:54]} 47. h5 {[%emt 0:00:00]} a5 {[%emt 0:04:19]} 48. Qa8 {[%emt 0:00:00]} Qe2+ {[%emt 0:00:28]} 49. Kb3 {[%emt 0:00:00]} Qd1+ {[%emt 0:00:39]} 50. Kb2 {[%emt 0:00:00]} Qd2+ {[%emt 0:01:28]} 51. Kb3 {[%emt 0:00:00]} Qd1+ {[%emt 0:00:49]} 52. Kb2 {[%emt 0:00:00]} Qxh5 {[%emt 0:03:02]} 53. Qxa5 {[%emt 0:00:00]} Qe2+ {[%emt 0:00:13]} 54. Kb3 {[%emt 0:00:00]} Qc4+ {[%emt 0:00:07]} 55. Kb2 {[%emt 0:00:00]} h5 {[%emt 0:01:48]} 56. Qa8 {[%emt 0:00:00]} h4 {[%emt 0:01:42]} 57. Qe8 {[%emt 0:00:00]} Qa6 {[%emt 0:00:46]} 58. Qd7 {[%emt 0:00:00]} Qe2+ {[%emt 0:01:03]} 59. Kb3 {[%emt 0:00:00]} Qe4 {[%emt 0:00:37]} 60. a5 {[%emt 0:00:00]} Qb1+ {[%emt 0:02:10]} 61. Ka4 {[%emt 0:00:00]} Qc2+ {[%emt 0:00:41]} 62. Kb5 {[%emt 0:00:00]} Qb3+ {[%emt 0:02:03]} 63. Ka6 {[%emt 0:00:00]} Qc4+ {[%emt 0:00:26]} 64. Kb6 {[%emt 0:00:00]} Qb3+ {[%emt 0:00:33]} 65. Ka7 {[%emt 0:00:40]} g6 {[%emt 0:01:19]} 66. a6 {[%emt 0:00:37]} Qxc3 {[%emt 0:00:28]} 67. Qxd5+ {[%emt 0:00:06]} Kh7 {[%emt 0:00:07]} 68. Qd8 {[%emt 0:02:27]} Bg7 {[%emt 0:01:14]} 69. Qxh4+ {[%emt 0:00:04]} Kg8 {[%emt 0:00:10]} 70. Qd8+ {[%emt 0:00:13]} Kh7 {[%emt 0:00:05]} 71. Qh4+ {[%emt 0:02:36]} Kg8 {[%emt 0:00:10]} 1/2-1/2

[Event "SWE-ch Class 1 2019"]
[Site "Eskilstuna"]
[Date "2019.07.11"]
[Round "4.5"]
[White "Arvidsson, Jonas"]
[Black "Jonsson, Krister"]
[Result "1-0"]
[ECO "C06"]
[WhiteElo "1965"]
[BlackElo "2068"]
[Annotator "NA"]
[PlyCount "43"]
[EventDate "2019.07.06"]
[EventType "tourn"]
[EventCountry "SWE"]
[SourceTitle "playchess.com"]
[Source "ChessBase"]
[SourceQuality "1"]
[TimeControl "40/5400+30:1800+30"]

1. e4 {[%emt 0:00:16]} e6 {[%emt 0:00:00]} 2. d4 {[%emt 0:00:07]} d5 {[%emt 0:00:00]} 3. Nd2 {[%emt 0:01:06]} Nf6 {[%emt 0:00:00]} 4. e5 {[%emt 0:00:07]} Nfd7 {[%emt 0:00:04]} 5. Bd3 {[%emt 0:00:18]} c5 {[%emt 0:00:08]} 6. c3 {[%emt 0:00:10]} Nc6 {[%emt 0:00:05]} 7. Ngf3 {[%emt 0:00:51]} g6 {[%emt 0:02:19]} 8. h4 {[%emt 0:01:16]} h6 {[%emt 0:00:42]} 9. Bc2 {[%emt 0:04:12]} cxd4 {[%emt 0:03:52]} 10. cxd4 {[%emt 0:01:09]} Qb6 {[%emt 0:00:09]} 11. Nb1 {[%emt 0:06:40]} Nb4 {[%emt 0:07:57]} 12. Nc3 {[%emt 0:04:43]} Nxc2+ {[%emt 0:00:22]} 13. Qxc2 {[%emt 0:00:02]} Bg7 {[%emt 0:07:57]} 14. Be3 {[%emt 0:03:56]} Qa5 {[%emt 0:05:18]} 15. O-O {[%emt 0:06:23]} Nb6 {[%emt 0:04:16]} 16. Nd2 {[%emt 0:03:18]} Nc4 {[%emt 0:00:17]} 17. Nxc4 {[%emt 0:01:09]} dxc4 {[%emt 0:02:48]} 18. Ne4 {[%emt 0:00:49]} b5 {[%emt 0:03:00]} 19. Nd6+ {[%emt 0:03:52]} Ke7 {[%emt 0:00:08]} 20. Bd2 {[%emt 0:04:13]} Qa4 {[%emt 0:03:29]} 21. b3 {[%emt 0:09:50]} Qa3 {[%emt 0:04:13]} 22. Nxb5 {[%emt 0:01:56]} 1-0